Cogmind - Beta 14 @@@ ROGUE MODE // 2024.09.19 @ 00:06:21 Player: Omega Result: Destroyed by H-61 Shepherd with Heavy Assault Cannon Performance ------------- Evolutions (2) 1000 Regions Visited (6) 1200 Robots Destroyed (45) 225 Value Destroyed (1261) 1261 Prototype IDs (0) 0 Alien Tech Used (0) 0 Bonus (200) 200 TOTAL SCORE: 3886 Bonus ------- Entered Garrisons 200 Cogmind --------- Core Integrity 0/550 Matter 232/300 Energy 42/100 System Corruption 1% Temperature Cool (3) Movement Walking (120) Location -8/Materials Parts ------- > --- POWER (2) -------- (None) > --- PROPULSION (4) --- Aluminum Leg Aluminum Leg Aluminum Leg > --- UTILITY (3) ------ Cryofiber Web Improved Targeting Computer Hardened Light Armor Plating > --- WEAPON (2) ------- Beam Rifle Assault Cannon > --- INVENTORY (5) ---- Improved Heat Sink Particle Gun Particle Gun Peak State ------------ > --- POWER ------------ Improved Ion Engine Light Nuclear Core > --- PROPULSION ------- Aluminum Leg Aluminum Leg Improved Aluminum Leg Makeshift Leg > --- UTILITY ---------- Cryofiber Web Improved Heat Sink Improved Targeting Computer > --- WEAPON ----------- Particle Cannon Particle Cannon > --- INVENTORY -------- Improved Ion Engine Heavy EM Pulse Gun Shotgun [Rating: 25] Favorites ----------- Power Improved Ion Engine Engine Improved Ion Engine Power Core Light Nuclear Core Propulsion Aluminum Leg Leg Aluminum Leg Utility Improved Targeting Computer Device Improved Terrain Scanner Storage Small Storage Unit Processor Improved Targeting Computer Protection Hardened Light Armor Plating Weapon Particle Cannon Energy Gun EM Pulse Gun Energy Cannon Particle Cannon Ballistic Gun Shotgun Ballistic Cannon Assault Cannon Launcher Missile Launcher Build | -11 -10 -9 -9 -8 -8 -8 ------- Run | Yrd Mat Mat Min Mat Gar Mat Slots Evolved 4 | . . 2 . 2 . . Power 1 | . . . . 1 . . Propulsion 2 | . . 1 . 1 . . Utility 1 | . . 1 . . . . Weapon . | . . . . . . . Parts Attached 49 | 7 4 7 2 1 22 6 Power 9 | 1 1 2 . . 4 1 Engine 6 | 1 1 2 . . 2 . Core 3 | . . . . . 2 1 Reactor . | . . . . . . . Propulsion 14 | 2 . 2 1 1 8 . Treads . | . . . . . . . Leg 14 | 2 . 2 1 1 8 . Wheel . | . . . . . . . Hover . | . . . . . . . Flight . | . . . . . . . Utility 9 | 2 1 1 1 . 3 1 Device 5 | 1 . 1 . . 3 . Storage 1 | 1 . . . . . . Processor 2 | . 1 . 1 . . . Hackware . | . . . . . . . Protection 1 | . . . . . . 1 Artifact . | . . . . . . . Weapon 17 | 2 2 2 . . 7 4 Energy Gun 9 | 2 1 . . . 4 2 Energy Cannon 4 | . 1 1 . . 2 . Ballistic Gun 2 | . . 1 . . 1 . Ballistic Cannon 1 | . . . . . . 1 Launcher 1 | . . . . . . 1 Special Weapon . | . . . . . . . Impact Weapon . | . . . . . . . Slashing Weapon . | . . . . . . . Piercing Weapon . | . . . . . . . Special Melee Weapon . | . . . . . . . Unidentified Prototypes . | . . . . . . . Corrupted Parts 1 | . . . . . 1 . System Corruption 1 | . . . . . 1 . Parts Lost 18 | . 2 . . . 15 1 Power 3 | . . . . . 3 . Propulsion 7 | . . . . . 6 1 Utility 1 | . . . . . 1 . Weapon 7 | . 2 . . . 5 . Highest Loss Streak 11 | . 2 . . . 11 1 To Critical Strikes . | . . . . . . . Average Slot Usage (%) 90 | . 99 89 100 90 81 86 Engine 9 | . 14 11 11 9 8 . Core 2 | . . . . . 5 8 Leg 30 | . 28 29 33 36 28 33 Device 14 | . 14 15 19 9 11 11 Processor 11 | . 12 11 13 18 10 9 Energy Gun 7 | . 22 2 . . 2 9 Energy Cannon 8 | . 5 11 11 9 10 . Ballistic Gun 4 | . . 8 11 9 2 . Peak Build Rating 25 | 9 12 18 18 18 25 22 Average Rating 15 | 5 11 14 17 18 18 18 On Entrance 13 | . 9 12 17 18 18 19 Naked Turns . | . . . . . . . Heaviest Build 26 | 15 17 16 16 15 23 26 Greatest Support 53 | 20 20 30 33 43 53 40 Greatest Overweight (x) 4 | 4 . . . . 3 . Average Overweight (x) . | . . . . . . . Largest Inventory Capacity 8 | 8 8 5 5 5 5 5 Average Capacity 5 | 7 5 5 5 5 5 5 Most Carried 5 | 2 5 5 5 4 4 4 Average Carried 3 | . 3 4 4 4 2 3 Final Capacity 8 | 8 5 5 5 5 5 5 Final Carried 5 | 2 3 4 5 4 2 3 Class Distribution -------------------- 67% | Mutant 32% | Scavenger-Mutant Dominant Class ---------------- Mutant | -10/Materials Mutant | -9/Materials Mutant | -9/Mines Mutant | -8/Materials Scavenger-Mutant | -8/Garrison Scavenger-Mutant | -8/Materials Resources | -11 -10 -9 -9 -8 -8 -8 ----------- Run | Yrd Mat Mat Min Mat Gar Mat Matter Collected 934 | 270 40 122 16 . 327 159 Remotely . | . . . . . . . Salvage Created 1408 | 116 118 180 85 . 673 236 Parts 93 | 11 16 17 2 . 31 16 Haulers Intercepted . | . . . . . . . Recyclers Shooed 2 | 1 . . . . . 1 Parts Field Recycled . | . . . . . . . Retrieved Matter . | . . . . . . . Parts Self-Destructed . | . . . . . . . Prevented . | . . . . . . . Kills | -11 -10 -9 -9 -8 -8 -8 ------- Run | Yrd Mat Mat Min Mat Gar Mat Combat Hostiles Destroyed 38 | . 5 7 2 . 17 7 Guns 21 | . 2 4 . . 11 4 Cannons 14 | . . 3 2 . 6 3 AOE 3 | . 3 . . . . . Classes Destroyed 6 | 2 2 1 . . 1 . Tunneler 3 | 3 . . . . . . Recycler 2 | 1 . . . . . 1 Watcher 2 | . 2 . . . . . Swarmer 15 | . 5 4 . . 3 3 Grunt 20 | . . 3 2 . 13 2 Sentry 3 | . . . . . 1 2 Best Kill Streak 6 | 2 3 4 2 . 6 3 Combat Bots Only 6 | . 3 4 2 . 6 3 Max Kills in Single Turn 2 | 1 2 1 1 . 1 1 Gunslinging . | . . . . . . . Exploded 2 | . 2 . . . . . Melee . | . . . . . . . Uniques/NPCs Destroyed . | . . . . . . . Combat | -11 -10 -9 -9 -8 -8 -8 -------- Run | Yrd Mat Mat Min Mat Gar Mat Hostile Shots Fired 262 | . 38 22 7 . 144 51 Missed 78 | . 14 7 3 . 42 12 Damage Taken 2612 | . 201 131 65 . 1562 653 Core 689 | . 43 29 18 . 375 224 Absorbed by Shields . | . . . . . . . Core Remaining (%) 90 | 100 82 . 88 . . . Volleys Fired 151 | 10 20 13 4 . 82 22 Largest 2 | 2 2 2 2 . 2 2 Hottest 136 | 80 108 91 91 . 136 109 Shots Fired 254 | 20 38 26 8 . 120 42 Gun 152 | 20 35 13 4 . 61 19 Cannon 99 | . 3 13 4 . 59 20 Launcher 3 | . . . . . . 3 Special . | . . . . . . . Kinetic 82 | . . 13 4 . 45 20 Thermal 112 | . 3 13 4 . 73 19 Explosive 3 | . . . . . . 3 Electromagnetic 57 | 20 35 . . . 2 . Robot Hit Streak 14 | 4 5 4 9 . 14 8 Robot Miss Streak 4 | 2 3 4 . . 4 3 Penetration Max . | . . . . . . . Secondary Targets . | . . . . . . . Shots Hit Robots 164 | 13 18 15 6 . 88 24 Core Hits 76 | 5 7 8 3 . 40 13 Critical Kills . | . . . . . . . Critical Parts Destroyed 1 | . . . . . 1 . Critical Strikes 3 | 1 1 . . . 1 . Destroy 1 | . . . . . 1 . Corrupt 2 | 1 1 . . . . . Melee Attacks . | . . . . . . . Impact . | . . . . . . . Slashing . | . . . . . . . Piercing . | . . . . . . . Sneak Attacks . | . . . . . . . Combat Hostiles . | . . . . . . . Follow-up Attacks . | . . . . . . . Damage Inflicted 3227 | 189 351 297 125 . 1622 643 Guns 1619 | 160 224 134 41 . 861 199 Cannons 1300 | . 21 142 83 . 761 293 Explosions 266 | 29 106 . . . . 131 Melee . | . . . . . . . Ramming 42 | . . 21 1 . . 20 Kinetic 1169 | . . 134 41 . 701 293 Thermal 1484 | 29 127 142 83 . 904 199 Explosive 131 | . . . . . . 131 Electromagnetic 401 | 160 224 . . . 17 . Impact . | . . . . . . . Slashing . | . . . . . . . Piercing . | . . . . . . . Highest Corruption 1 | . . . . . 1 1 Average Corruption 1 | . . . . . 1 1 Corruption Purged . | . . . . . . . Corruption Blocked . | . . . . . . . Effects 5 | . . . . . 2 3 Message Errors 1 | . . . . . 1 . Matter Fused 1 | . . . . . 1 . Heat Flow Errors 1 | . . . . . . 1 Energy Discharges 1 | . . . . . . 1 Data Loss (minor) 1 | . . . . . . 1 Overload Shots . | . . . . . . . Overflow Damage 30 | . 27 . . . . 3 Projectiles 3 | . . . . . . 3 Explosions 27 | . 27 . . . . . Melee . | . . . . . . . Knockbacks 2 | . . . . . . 2 Impact . | . . . . . . . Kinetic 2 | . . . . . . 2 Secondary . | . . . . . . . Self-Inflicted Damage . | . . . . . . . Shots . | . . . . . . . Rammed . | . . . . . . . Targets Rammed 12 | . . 5 3 . . 4 Kicked 12 | . . 5 3 . . 4 Crushed . | . . . . . . . Highest Temperature 678 | 56 149 90 29 . 288 678 Average Temperature 118 | 23 51 28 15 . 97 237 Received Heat Transfer 1269 | . 6 24 33 . 1008 198 Effects 17 | . . . . . . 17 Energy Bleed 2 | . . . . . . 2 Interference 6 | . . . . . . 6 Short Circuit 2 | . . . . . . 2 Damage (minor) 2 | . . . . . . 2 Damage (major) 4 | . . . . . . 4 Damage (core) 1 | . . . . . . 1 Siege Activations . | . . . . . . . Robots Corrupted . | . . . . . . . Combat Hostiles . | . . . . . . . Parts Fried 3 | 1 2 . . . . . Impact Corruptions . | . . . . . . . Robots Melted . | . . . . . . . Combat Hostiles . | . . . . . . . Parts Melted 5 | . . . . . 4 1 Heat Transferred 2650 | 50 87 259 148 . 1662 444 Parts Sabotaged . | . . . . . . . Parts Stolen . | . . . . . . . Parts Stripped . | . . . . . . . Power Chain Reactions 3 | 1 2 . . . . . Alert | -11 -10 -9 -9 -8 -8 -8 ------- Run | Yrd Mat Mat Min Mat Gar Mat Peak Influence 428 | 20 162 202 108 6 269 428 Initial 126 | . 13 4 78 . 3 126 Average 113 | 8 53 64 78 . 178 245 Maximum Alert Level 2 | . . 1 . . 1 2 Low Security (%) 79 | 100 100 87 100 100 57 36 Level 1 19 | . . 12 . . 42 51 Level 2 1 | . . . . . . 11 Level 3 . | . . . . . . . Level 4 . | . . . . . . . Level 5 . | . . . . . . . High Security . | . . . . . . . Max Security . | . . . . . . . Squads Dispatched 5 | . 1 3 . . . 1 Investigation 1 | . . 1 . . . . Extermination . | . . . . . . . Reinforcement 4 | . 1 2 . . . 1 Assault . | . . . . . . . Garrison . | . . . . . . . Intercept . | . . . . . . . Searches Triggered . | . . . . . . . Construction Impeded . | . . . . . . . Haulers Reinforced . | . . . . . . . Active Scanning Responses . | . . . . . . . Cargo Convoy Interrupts . | . . . . . . . Stealth | -11 -10 -9 -9 -8 -8 -8 --------- Run | Yrd Mat Mat Min Mat Gar Mat Distress Signals 5 | . . 3 . . . 2 Communications Jammed . | . . . . . . . Distress Signals . | . . . . . . . Times Spotted 53 | . 12 10 2 . 18 11 Peak Tracking Total 7 | . 4 4 2 . 7 6 Tactical Retreats 4 | . . . . . 2 2 Traps | -11 -10 -9 -9 -8 -8 -8 ------- Run | Yrd Mat Mat Min Mat Gar Mat Traps Triggered 2 | . . 1 . . . 1 Indirectly . | . . . . . . . Trap Hack Attempts . | . . . . . . . Triggered . | . . . . . . . Disarmed . | . . . . . . . Reprogrammed . | . . . . . . . Reused . | . . . . . . . Traps Extracted . | . . . . . . . Installed . | . . . . . . . Triggered . | . . . . . . . Machines | -11 -10 -9 -9 -8 -8 -8 ---------- Run | Yrd Mat Mat Min Mat Gar Mat Machines Disabled 2 | . 1 . . . 1 . Max in Single Turn 1 | . 1 . . . 1 . Machines Repaired . | . . . . . . . Machines Dismantled . | . . . . . . . Machines Sabotaged . | . . . . . . . Overloaded Fab Kills . | . . . . . . . Hacking | -11 -10 -9 -9 -8 -8 -8 --------- Run | Yrd Mat Mat Min Mat Gar Mat Machines Accessed 13 | . 5 5 . 1 . 2 Terminals 9 | . 5 3 . . . 1 Fabricators . | . . . . . . . Repair Stations . | . . . . . . . Recycling Units 2 | . . 1 . . . 1 Scanalyzers 1 | . . 1 . . . . Garrison Access 1 | . . . . 1 . . Total Hacks 45 | . 18 17 . 4 . 6 Successful 33 | . 12 13 . 3 . 5 Failed 12 | . 6 4 . 1 . 1 Catastrophic . | . . . . . . . Database Lockouts . | . . . . . . . Manual 18 | . 10 7 . 1 . . Terminals 30 | . 18 9 . . . 3 Fabricators . | . . . . . . . Repair Stations . | . . . . . . . Recycling Units 7 | . . 4 . . . 3 Scanalyzers 4 | . . 4 . . . . Garrison Access 4 | . . . . 4 . . Terminal Hacks 8 | . 5 1 . . . 2 Record 3 | . 2 . . . . 1 Emergency Access Points 1 | . . . . . . 1 Unreport Threat 1 | . 1 . . . . . Locate Traps 1 | . 1 . . . . . Zone Layout 2 | . 1 1 . . . . Fabricator Hacks . | . . . . . . . Repair Station Hacks . | . . . . . . . Recycling Unit Hacks 7 | . . 4 . . . 3 Recycle Component 1 | . . . . . . 1 Process 2 | . . 1 . . . 1 Report Inventory 1 | . . 1 . . . . Retrieve Matter 2 | . . 1 . . . 1 Retrieve Components 1 | . . 1 . . . . Scanalyzer 4 | . . 4 . . . . Insert Component 2 | . . 2 . . . . Analyze 2 | . . 2 . . . . Garrison Access Hacks 2 | . . . . 2 . . Unlock Access 1 | . . . . 1 . . Coupler Status 1 | . . . . 1 . . Unauthorized Hacks 12 | . 7 4 . 1 . . Terminals 11 | . 7 4 . . . . Assimilate 3 | . 2 1 . . . . Botnet 3 | . . 3 . . . . Skim 5 | . 5 . . . . . Fabricators . | . . . . . . . Repair Stations . | . . . . . . . Recycling Units . | . . . . . . . Scanalyzers . | . . . . . . . Garrison Access 1 | . . . . 1 . . Redirect 1 | . . . . 1 . . Data Cores Recovered . | . . . . . . . Used . | . . . . . . . Hacking Detections 12 | . 5 4 . 1 . 2 Full Trace Events 1 | . . 1 . . . . Feedback Events . | . . . . . . . Feedback Blocked . | . . . . . . . Robot Schematics Acquired . | . . . . . . . Robots Built . | . . . . . . . Authchips . | . . . . . . . Time . | . . . . . . . Total Robot Build Rating . | . . . . . . . Part Schematics Acquired 2 | . . 2 . . . . Parts Built . | . . . . . . . Authchips . | . . . . . . . Time . | . . . . . . . Total Part Build Rating . | . . . . . . . Parts Repaired . | . . . . . . . Time . | . . . . . . . Parts Recycled 1 | . . . . . . 1 Recycled Matter 219 | . . 208 . . . 11 Retrieved Matter 435 | . . 424 . . . 11 Retrieved Components . | . . . . . . . Parts Scanalyzed 2 | . . 2 . . . . Part Schematics Acquired 2 | . . 2 . . . . Parts Damaged . | . . . . . . . Bothacking | -11 -10 -9 -9 -8 -8 -8 ------------ Run | Yrd Mat Mat Min Mat Gar Mat Used RIF Installer . | . . . . . . . Robots Hacked . | . . . . . . . Non-combat . | . . . . . . . Combat . | . . . . . . . Robot Hacks Applied . | . . . . . . . Relay Couplers Released . | . . . . . . . Fabnet Peak Effective % . | . . . . . . . Robots Rewired . | . . . . . . . Allies Hacked . | . . . . . . . Hacks Repelled . | . . . . . . . Allies | -11 -10 -9 -9 -8 -8 -8 -------- Run | Yrd Mat Mat Min Mat Gar Mat Total Allies 2 | . . . 2 . . . Largest Group 2 | . . . 2 1 1 . Highest-Rated Group 42 | . . . 42 11 11 . Highest-Rated Ally 31 | . . . 31 11 11 . Total Orders . | . . . . . . . Ally Attacks 6 | . . . 6 . . . Total Damage 65 | . . . 65 . . . Kills . | . . . . . . . Allies Corrupted . | . . . . . . . Allies Melted . | . . . . . . . Intel | -11 -10 -9 -9 -8 -8 -8 ------- Run | Yrd Mat Mat Min Mat Gar Mat Robot Analysis Total . | . . . . . . . Derelict Logs Recovered 2 | . . . 2 . . . Drone Launches . | . . . . . . . Drone Recoveries . | . . . . . . . Exploration | -11 -10 -9 -9 -8 -8 -8 ------------- Run | Yrd Mat Mat Min Mat Gar Mat Turns Passed 2381 | 131 512 371 424 11 652 280 Spaces Moved 1527 | 59 370 257 336 9 335 161 Core 29 | 18 . . . . 11 . Treads . | . . . . . . . Legs 1498 | 41 370 257 336 9 324 161 Wheels . | . . . . . . . Hover . | . . . . . . . Flight . | . . . . . . . Fastest Speed 50 | 50 120 120 120 120 50 120 Average Speed 121 | 150 120 120 120 120 121 120 Slowest Speed 250 | 250 120 120 120 120 200 120 Overloaded Moves . | . . . . . . . Propulsion Burnouts . | . . . . . . . Robots Hopped . | . . . . . . . Cave-ins Triggered . | . . . . . . . Exploration Rate (%) 33 | 5 55 32 66 3 52 21 Regions Visited 6 Branch Regions 1 Pre-discovered Areas 1 | . . . 1 . . . Known Exits Taken 3 | . 1 . 1 1 . . Unknown Exits Taken 2 | 1 . 1 . . . . Scrap Searched 2 | . . . 2 . . . Spaces Dug . | . . . . . . . Terrain Destroyed 34 | 5 3 . . . . 26 Melee . | . . . . . . . Projectile 3 | . . . . . . 3 AOE 31 | 5 3 . . . . 23 Terrain Rammed . | . . . . . . . Walls Destroyed . | . . . . . . . Machines Disabled . | . . . . . . . Actions | -11 -10 -9 -9 -8 -8 -8 --------- Run | Yrd Mat Mat Min Mat Gar Mat Total 1787 | 77 400 291 348 9 456 206 Wait 20 | . . 4 1 . 10 5 Move 1520 | 58 369 256 335 8 333 161 Hop . | . . . . . . . Pick Up 14 | 2 4 3 . . 3 2 Fast Attach 35 | 7 2 5 2 . 15 4 Attach 12 | . 2 1 . 1 6 2 Detach 5 | . . . 2 . 1 2 Swap 2 | . . 1 . . 1 . Drop 16 | . 3 3 1 . 5 4 Fire 151 | 10 20 13 4 . 82 22 Melee . | . . . . . . . Ram . | . . . . . . . Kick 12 | . . 5 3 . . 4 Crush . | . . . . . . . Escape Stasis . | . . . . . . . Rewire . | . . . . . . . Trap . | . . . . . . . Miscellaneous . | . . . . . . . Route ------- -11/Scrapyard -10/Materials (discovered 4 exits: *Mat x3 / [*Min]) -9/Materials (discovered 3 exits: Mat x2 / [*Min]) -9/Mines (discovered 2 exits: *Mat / [*Exi]) -8/Materials (discovered 2 exits: Sto / Gar) -8/Garrison (discovered 2 exits: *Mat x2) -8/Materials History --------- Turn | Location | Event 2 | -11/Scrapyard | Met Revision 17 43 | -11/Scrapyard | Discovered new exit (range 14) 132 | -11/Scrapyard | Entered Materials 249 | -10/Materials | Discovered new exit (range 13) 306 | -10/Materials | Build established: Mutant 308 | -10/Materials | Discovered new exit (range 17) 368 | -10/Materials | Discovered new exit (range 16) 616 | -10/Materials | Identified exit to Materials 644 | -10/Materials | Entered another Materials area 644 | -9/Materials | Evolved 2 slots: Propulsion x1, Utility x1 645 | -9/Materials | Identified exit to Materials 883 | -9/Materials | Met 8R-AWN 1000 | -9/Materials | Discovered new exit (range 13) 1015 | -9/Materials | Entered Mines 1017 | -9/Mines | Followed 8R-AWN into the Mines 1062 | -9/Mines | Learned Materials terminal intel 1364 | -9/Mines | Discovered exit to Materials (range 15) 1387 | -9/Mines | Discovered new exit (range 5) 1404 | -9/Mines | Learned location of Storage (-8) 1439 | -9/Mines | Entered Materials 1439 | -8/Materials | Accompanied by 1 ally 1439 | -8/Materials | Evolved 2 slots: Power x1, Propulsion x1 1440 | -8/Materials | Identified exit to Storage 1441 | -8/Materials | Loaded intel: 12 terminal locations 1449 | -8/Materials | Identified exit to Garrison 1450 | -8/Materials | Entered Garrison 1450 | -8/Garrison | Accompanied by 1 ally 1616 | -8/Garrison | Triggered checkpoint 1670 | -8/Garrison | Triggered checkpoint 1677 | -8/Garrison | Discovered new exit (range 10) 1689 | -8/Garrison | Attempted to access garrison exit controls, blocked by remote lockdown 1769 | -8/Garrison | Build established: Scavenger-Mutant 1836 | -8/Garrison | Triggered checkpoint 1848 | -8/Garrison | Triggered checkpoint 1908 | -8/Garrison | Triggered checkpoint 1959 | -8/Garrison | Lost 11 parts (2p4n1u4w) 1974 | -8/Garrison | Core integrity fell below 50% 2042 | -8/Garrison | Lost 3 parts (1p1n1w) 2089 | -8/Garrison | Discovered new exit (range 12) 2102 | -8/Garrison | Entered Materials 2290 | -8/Materials | Core integrity fell below 20% 2382 | -8/Materials | Destroyed by H-61 Shepherd with Heavy Assault Cannon Last Messages --------------- U-05 Engineer lays Concrete. U-05 Engineer builds a Wall. U-05 Engineer lays Concrete. Acquired 3 matter. U-05 Engineer builds a Wall. U-05 Engineer lays Concrete. Acquired 13 matter. U-05 Engineer lays Concrete. U-05 Engineer builds a Door. U-05 Engineer lays Concrete. U-05 Engineer builds a Wall. U-05 Engineer lays Concrete. U-05 Engineer builds a Wall. U-05 Engineer lays Concrete. R-06 Scavenger collects Beam Rifle. U-05 Engineer lays Concrete. System corrupted: Energy discharge (-21). U-05 Engineer lays Concrete. W-25 Informer sends out distress signal. Knocked back. Map ----- +----------------------------------------------------+ | ?????????????????????????????????????????????????? | | ?????????????????????????????????????????????????? | | ?????????????????????????????????????????????????? | | ?????????????????????????????????????????????????? | | ?????????????????????????????????????????????????? | | ?????????????????????????????????????????????????? | | ?????????????????????????????????????????????????? | | ?????????????????????????????????????????????????? | | ?????????????????????????????????????????????????? | | ?????????????????????????????????????????????????? | | ???????????????????????? ????????????????????? | | ??????????????????????? w ???????????????????? | | ??????????????????????? ????????????????????? | | ??????????????????????? ????????????????????? | | ???????????????????????? ????????????????????? | | ???????????????????????? k ????????????????????? | | ????????????????????????# Y #????????????????????? | | ????????????????????????# #????????????????????? | | ????????????????????????# #????????????????????? | | ????????????????????????# #????????????????????? | | ????????????????????????# k#????????????????????? | | ???????????????????##???# #????????????????????? | | ???????????????????? ?## ##???????????????????? | | ????????????????????? # ##########+### ?????? | | ?????????????????????? # % k ????? | | ???????????????????????+ @ H????? | | ???????????????????????# ????? | | ???????????????????????#% ##############??????? | | ???????????????????????## ##T##### ^ #??????? | | ????????????????????????# # =!! # """ #??????? | | ????????????????????????# # =!! # "R" #??????? | | ????????????????????????# + =! # " " #??????? | | ????????????????????????# # # ^ #??????? | | ????????????????????????# # #/## """ #??????? | | ????????????????????????# w # """ #??????? | | ???????????????????###### r # """ #??????? | | ????????????######## %%%% [%! #??????? | | ????????????#! [!# #### # ] #??????? | | ????????????# #%#??## # # /=!! #??????? | | ????????????# """ +=#???#+## #%!]] #??????? | | ????????????# """ #*#? # !]] #??????? | | ????????????# """ =# # ########??????? | | ????????????# # # # ?????????????? | | ????????????######## # """ + ????????????? | | ????????????######## # "" """ # ???????????? | | ????????????# # # S"" """ # #???????????? | | ????????????# /# # "" ? # #???????????? | | ????????????# # # ??? + +???????????? | | ????????????# =! = # ##????#######+###???????????? | | ????????????# =! / #???????????? ?????????????? | +----------------------------------------------------+ Best States ------------- Heat Dissipation 59 Energy Generation 23 Energy Capacity 430 Matter Stores 300 Matter Capacity 300 Sight Range 16 Terrain Scan Range 16 Terrain Scan Density 85 Base Temperature (-) 100 Armor Coverage 150 Evasion (%) 55 Targeting Accuracy 6 Item Schematics ----------------- Imp. Ion Engine | -9/Materials | Scanalyzed Particle Cannon | -9/Materials | Scanalyzed Robot Schematics ------------------ None Fabricated ------------ Nothing Alien Tech Used ----------------- None Achievements -------------- Everything Is Under Control Quantum Hacking Challenges ------------ None Game ------ Seed SignalRecoilRay Manual? 0 Play Time 00:38:42 Cumulative 4.6 hours Start 2024.09.18 @ 23:26:07 End 2024.09.19 @ 00:06:21 Sessions 1 Manual Loads 0 Difficulty Rogue Special Mode None Game No. 6 Rogue 6 Adventurer 0 Explorer 0 Win Type - Total 0 Types 0/0/0/0/0/0/0/0/0 Lore% 3 Gallery% 9 Achievement% 10 Wizard Run 0 Options --------- Layout 1 ASCII 0 Keyboard 0 Movement Mouse Keybinds 0 Fullscreen 1 Font 24/Smallcaps Map View 50x35 Zoom Use 0% Tactical HUD 0 Map Filters NONE Filters NONE Steam 1 RUN: 5c86cdab-2995-4fcd-a1d7-043c20dae761